fUSD/lending_fUSD_20260301
["ID","MTS","AMOUNT","RATE_DAILY","PERIOD"]
[406977191,1772398242326,-500.0,0.0001207,2]
[406977192,1772398242335,-500.0,0.0001207,2]
[406977193,1772398242346,-502.36418825,0.0001207,2]
[406977194,1772398242360,-500.0,0.0001207,2]
[406977195,1772398242369,-500.0,0.0001207,2]
[406977196,1772398242379,-500.0,0.0001207,2]
[406977197,1772398242388,-670.0,0.0001207,2]
[406977198,1772398242398,-500.0,0.0001207,2]
[406977199,1772398242410,-500.0,0.0001207,2]
[406977200,1772398242419,-500.0,0.0001207,2]
[406977201,1772398242428,-500.0,0.0001207,2]
[406977202,1772398242437,-500.0,0.0001207,2]
[406977203,1772398242447,-500.0,0.0001207,2]
[406977204,1772398242456,-500.0,0.0001207,2]
[406977205,1772398242465,-500.0,0.0001207,2]
[406977206,1772398242474,-500.0,0.0001207,2]
[406977207,1772398242484,-500.0,0.0001207,2]
[406977208,1772398242493,-500.0,0.0001207,2]
[406977209,1772398242503,-500.0,0.0001207,2]
[406977210,1772398242512,-500.0,0.0001207,2]
[406977211,1772398242521,-500.0,0.0001207,2]
[406977212,1772398242530,-500.0,0.0001207,2]
[406977213,1772398242540,-611.11529278,0.0001207,2]
[406977214,1772398242549,-500.0,0.0001207,2]
[406977215,1772398242558,-500.0,0.0001207,2]
[406977216,1772398242568,-152.81102873,0.0001207,2]
[406977217,1772398242578,-500.0,0.0001207,2]
[406977218,1772398242587,-500.0,0.0001207,2]
[406977219,1772398242597,-500.0,0.0001207,2]
[406977220,1772398242606,-500.0,0.0001207,2]
[406977221,1772398242615,-500.0,0.0001207,2]
[406977222,1772398242624,-500.0,0.0001207,2]
[406977223,1772398242634,-399.8050211,0.0001207,2]
[406977224,1772398242646,-500.0,0.0001207,2]
[406977225,1772398242656,-500.0,0.0001207,2]
[406977226,1772398242665,-500.0,0.0001207,2]
[406977227,1772398242675,-500.0,0.0001207,2]
[406977228,1772398242687,-500.0,0.0001207,2]
[406977229,1772398242696,-500.0,0.0001207,2]
[406977230,1772398242706,-499.73245123,0.00012073,2]
[406977231,1772398242717,-468.0,0.00012073,2]
[406977232,1772398242727,-500.0,0.00012073,2]
[406977233,1772398242737,-500.0,0.00012073,2]
[406977234,1772398242747,-151.0,0.00012103,2]
[406977235,1772398242756,-468.0,0.00012127,2]
[406977236,1772398242766,-500.0,0.00012127,2]
[406977237,1772398242775,-500.0,0.00012127,2]
[406977238,1772398242785,-1000.0,0.00012146,2]
[406977239,1772398242795,-151.0,0.00012158,2]
[406977240,1772398242804,-500.0,0.00012164,2]
[406977241,1772398242814,-468.0,0.00012182,2]
[406977242,1772398242823,-500.0,0.00012182,2]
[406977243,1772398242831,-500.0,0.00012182,2]
[406977244,1772398242841,-151.0,0.00012213,2]
[406977245,1772398242851,-468.0,0.00012237,2]
[406977246,1772398242860,-500.0,0.00012237,2]
[406977247,1772398242870,-500.0,0.00012237,2]
[406977248,1772398242879,-1536.35,0.00012237,2]
[406977249,1772398242890,-151.0,0.00012268,2]
[406977250,1772398242901,-468.0,0.00012292,2]
[406977251,1772398242910,-497.09622115,0.00012292,2]
[406977252,1772398242920,-500.0,0.00012292,2]
[406977253,1772398242930,-151.0,0.00012323,2]
[406977254,1772398242940,-468.0,0.00012347,2]
[406977255,1772398242950,-500.0,0.00012347,2]
[406977256,1772398242959,-1000.0,0.00012372,2]
[406977257,1772398242968,-266.38,0.00012372,2]
[406977258,1772398242978,-151.0,0.00012378,2]
[406977259,1772398242987,-739.3457,0.000124,2]
[406977260,1772398242996,-468.0,0.00012401,2]
[406977261,1772398243007,-500.0,0.00012401,2]
[406977262,1772398243017,-151.0,0.00012433,2]
[406977263,1772398243027,-350.0,0.00012443,2]
[406977264,1772398243036,-1000.0,0.00012444,2]
[406977265,1772398243047,-5000.0,0.00012448,2]
[406977266,1772398243056,-468.0,0.00012456,2]
[406977267,1772398243067,-500.0,0.00012456,2]
[406977268,1772398243077,-200.0,0.00012486,2]
[406977269,1772398243087,-151.0,0.00012487,2]
[406977270,1772398243097,-234.50005133,0.00012488,2]
[406977272,1772398243106,-60493.91047619,0.0001249,2]
[406977273,1772398243116,-500.0,0.00012493,2]
[406977276,1772398243129,-468.0,0.00012511,2]
[406977277,1772398243139,-563.0,0.00012511,2]
[406977278,1772398243148,-1536.35,0.00012511,2]
[406977279,1772398243158,-45927.64900619,0.00012518,2]
[406977280,1772398243167,-151.0,0.00012518,2]
[406977281,1772398243176,-151.0,0.00012518,2]
[406977282,1772398243186,-151.0,0.00012518,2]
[406977283,1772398243195,-151.0,0.00012518,2]
[406977284,1772398243205,-151.0,0.00012518,2]
[406977285,1772398243215,-151.0,0.00012518,2]
[406977286,1772398243224,-151.0,0.00012518,2]
[406977287,1772398243233,-151.0,0.00012518,2]
[406977288,1772398243243,-151.0,0.00012518,2]
[406977289,1772398243252,-151.0,0.00012518,2]
[406977291,1772398243262,-151.0,0.00012518,2]
[406977292,1772398243272,-873.40206784,0.00012549,2]
[406977293,1772398243281,-350.0,0.00012561,2]
[406977294,1772398243291,-468.0,0.00012566,2]
[406977295,1772398243301,-151.0,0.00012593,2]
[406977296,1772398243311,-151.0,0.00012593,2]
[406977297,1772398243422,-156.587,0.00012593,2]
[406977298,1772398243433,-162.380719,0.00012593,2]
[406977299,1772398243442,-160.40816183,0.00012593,2]
[406977300,1772398243452,-500.0,0.00012593,2]
[406977301,1772398243461,-151.0,0.00012593,2]
[406977302,1772398243470,-500.0,0.00012593,2]
[406977303,1772398243479,-151.0,0.00012593,2]
[406977304,1772398243489,-743.50770149,0.00012593,2]
[406977305,1772398243498,-500.0,0.00012593,2]
[406977306,1772398243508,-500.0,0.00012593,2]
[406977307,1772398243518,-151.0,0.00012593,2]
[406977308,1772398243527,-500.0,0.00012593,2]
[406977309,1772398243536,-500.0,0.00012593,2]
[406977310,1772398243545,-151.0,0.00012593,2]
[406977311,1772398243555,-500.0,0.00012593,2]
[406977312,1772398243565,-151.0,0.00012593,2]
[406977313,1772398243574,-500.0,0.00012593,2]
[406977314,1772398243583,-500.0,0.00012593,2]
[406977316,1772398243592,-151.0,0.00012593,2]
[406977318,1772398243601,-500.0,0.00012593,2]
[406977319,1772398243611,-500.0,0.00012593,2]
[406977320,1772398243621,-250.0,0.00012593,2]
[406977321,1772398243630,-151.0,0.00012593,2]
[406977322,1772398243642,-500.0,0.00012593,2]
[406977323,1772398243653,-500.0,0.00012593,2]
[406977324,1772398243662,-500.0,0.00012593,2]
[406977325,1772398243672,-344.25499231,0.00012593,2]
[406977326,1772398243682,-151.0,0.00012593,2]
[406977327,1772398243691,-500.0,0.00012593,2]
[406977328,1772398243701,-500.0,0.00012593,2]
[406977329,1772398243711,-500.0,0.00012593,2]
[406977330,1772398243721,-289.73982287,0.00012593,2]
[406977331,1772398243730,-500.0,0.00012593,2]
[406977332,1772398243740,-500.0,0.00012593,2]
[406977333,1772398243749,-500.0,0.00012593,2]
[406977334,1772398243758,-500.0,0.00012593,2]
[406977335,1772398243768,-500.0,0.00012593,2]
[406977336,1772398243777,-500.0,0.00012593,2]
[406977337,1772398243787,-500.0,0.00012593,2]
[406977338,1772398243796,-578.20924308,0.00012593,2]
[406977339,1772398243805,-500.0,0.00012593,2]
[406977340,1772398243816,-269.917619,0.00012593,2]
[406977341,1772398243825,-174.61919141,0.00012593,2]
[406977342,1772398243834,-644.79446246,0.00012593,2]
[406977343,1772398243844,-151.0,0.00012593,2]
[406977344,1772398243853,-257.91778498,0.00012593,2]
[406977345,1772398243862,-96131.2323452,0.00012602,2]
[406977346,1772398243874,-682.808823,0.00012602,2]
[406977347,1772398243883,-682.808823,0.00012602,2]
[406977348,1772398243892,-682.808823,0.00012602,2]
[406977349,1772398243902,-682.808823,0.00012602,2]
[406977350,1772398243911,-782.859413,0.00012602,2]
[406977351,1772398243920,-782.859413,0.00012602,2]
[406977352,1772398243929,-782.859413,0.00012602,2]
[406977353,1772398243938,-782.859413,0.00012602,2]
[406977354,1772398243947,-151.0,0.00012602,2]
[406977355,1772398243957,-151.0,0.00012602,2]
[406977356,1772398243967,-151.0,0.00012607,2]
[406977357,1772398243976,-155.0,0.00012609,2]
[406977358,1772398243985,-244941.7815317,0.0001261,2]
[406977359,1772398243995,-66848.8321634,0.0001261,2]
[406977360,1772398244005,-1541.4833884,0.0001261,2]
[406977361,1772398244014,-151.0,0.0001261,2]
[406977362,1772398244024,-151.0,0.0001261,2]
[406977363,1772398244033,-151.0,0.0001261,2]
[406977364,1772398244042,-151.0,0.0001261,2]
[406977365,1772398244052,-151.0,0.0001261,2]
[406977366,1772398244062,-282.912155,0.0001261,2]
[406977367,1772398244072,-151.0,0.0001261,2]
[406977368,1772398244082,-151.0,0.0001261,2]
[406977369,1772398244091,-151.0,0.0001261,2]
[406977370,1772398244100,-151.0,0.0001261,2]
[406977371,1772398244110,-151.0,0.0001261,2]
[406977372,1772398244119,-468.0,0.00012621,2]
[406977373,1772398244129,-22149.27980599,0.00012632,2]
[406977374,1772398244138,-668.65185757,0.00012648,2]
[406977375,1772398244148,-151.0,0.00012648,2]
[406977376,1772398244158,-782.859413,0.00012675,2]
[406977377,1772398244167,-782.859413,0.00012675,2]
[406977378,1772398244176,-782.859413,0.00012675,2]
[406977379,1772398244186,-782.859413,0.00012675,2]
[406977380,1772398244195,-468.0,0.00012675,2]
[406977381,1772398244205,-1000.0,0.00012677,2]
[406977382,1772398244216,-682.808823,0.00012677,2]
[406977383,1772398244225,-682.808823,0.00012677,2]
[406977384,1772398244235,-682.808823,0.00012677,2]
[406977385,1772398244244,-682.808823,0.00012677,2]
[406977386,1772398244255,-151.0,0.00012677,2]
[406977387,1772398244264,-208.23138,0.00012677,2]
[406977388,1772398244274,-2483.35752194,0.00012693,2]
[406977389,1772398244283,-693.3919763,0.00012703,2]
[406977390,1772398244292,-151.0,0.00012703,2]
[406977391,1772398244303,-153.68,0.00012724,2]
[406977392,1772398244313,-468.0,0.0001273,2]
[406977393,1772398244323,-719.04747942,0.00012758,2]
[406977394,1772398244332,-468.0,0.00012785,2]
[406977395,1772398244342,-1536.35,0.00012785,2]
[406977396,1772398244351,-151.0,0.00012811,2]
[406977397,1772398244361,-203.3133094,0.00012811,2]
[406977398,1772398244371,-151.0,0.00012811,2]
[406977399,1772398244381,-745.65223616,0.00012813,2]
[406977400,1772398244390,-420.0,0.00012835,2]
[406977401,1772398244399,-420.0,0.00012835,2]
[406977402,1772398244409,-468.0,0.0001284,2]
[406977403,1772398244419,-151.0,0.00012855,2]
[406977404,1772398244428,-1680.0,0.00012857,2]
[406977405,1772398244438,-350.0,0.00012867,2]
[406977406,1772398244447,-773.2413689,0.00012868,2]
[406977407,1772398244457,-468.0,0.00012894,2]
[406977408,1772398244467,-5900.0,0.000129,4]
[406977409,1772398244476,-440.24452461,0.00012911,5]
[406977410,1772398244488,-1000.0,0.00012911,2]
[406977411,1772398244497,-443.46717804,0.00012911,2]
[406977412,1772398244507,-255.0,0.00012911,2]
[406977413,1772398244516,-350.0,0.00012913,2]
[406977414,1772398244526,-801.85129955,0.00012923,2]
[406977415,1772398244535,-486.0,0.00012949,2]
[406977416,1772398244546,-166.66,0.00012969,2]
[406977417,1772398244557,-831.51979763,0.00012978,2]
[406977418,1772398244567,-5000.0,0.00013017,2]
[406977419,1772398244577,-250.0,0.00013017,2]
[406977420,1772398244586,-155.0,0.00013029,2]
[406977421,1772398244596,-862.28603014,0.00013033,2]
[406977422,1772398244608,-200.0,0.00013034,2]
[406977423,1772398244619,-5369.77541326,0.0001305,2]
[406977424,1772398244628,-1536.35,0.00013059,2]
[406977425,1772398244641,-894.19061326,0.00013088,2]
[406977426,1772398244651,-246.16543512,0.00013141,2]
[406977427,1772398244662,-827.05491841,0.00013141,2]
[406977428,1772398244671,-316.29627168,0.00013141,2]
[406977429,1772398244684,-181.08010149,0.00013141,2]
[406977430,1772398244694,-286.89974857,0.00013141,2]
[406977431,1772398244706,-927.27566595,0.00013143,2]
[406977432,1772398244716,-151.0,0.00013158,2]
[406977433,1772398244726,-200.0,0.00013167,2]
[406977434,1772398244736,-45927.64900619,0.00013191,2]
[406977435,1772398244747,-151.0,0.00013191,2]
[406977436,1772398244758,-151.0,0.00013191,2]
[406977437,1772398244769,-151.0,0.00013191,2]
[406977438,1772398244780,-151.0,0.00013191,2]
[406977439,1772398244791,-151.0,0.00013191,2]
[406977440,1772398244800,-151.0,0.00013191,2]
[406977441,1772398244810,-208.88756,0.00013191,2]
[406977442,1772398244820,-961.58486559,0.00013198,2]
[406977443,1772398244830,-997.16350561,0.00013253,2]
[406977444,1772398244840,-1536.35,0.00013333,2]
[406977445,1772398244850,-500.0,0.00013342,2]
[406977446,1772398244860,-166.66,0.00013383,2]
[406977447,1772398244869,-3240.0,0.00013425,2]
[406977448,1772398244880,-155.0,0.0001345,2]
[406977449,1772398244889,-347.660221,0.00013492,2]
[406977450,1772398244899,-1000.0,0.00013495,2]
[406977451,1772398244908,-1000.0,0.000135,2]
[406977452,1772398244920,-200.0,0.00013582,2]
[406977453,1772398244930,-1536.35,0.00013607,2]
[406977454,1772398244939,-350.0,0.0001362,2]
[406977455,1772398244948,-350.0,0.00013628,2]
[406977456,1772398244958,-152.95,0.00013634,2]
[406977457,1772398244967,-163.85650104,0.00013668,2]
[406977458,1772398244977,-23105.91,0.00013671,2]
[406977459,1772398244986,-187.78006525,0.00013689,2]
[406977460,1772398244996,-500.0,0.00013698,2]
[406977461,1772398245005,-500.0,0.00013698,2]
[406977462,1772398245015,-500.0,0.00013698,2]
[406977463,1772398245024,-500.0,0.00013698,2]
[406977464,1772398245034,-500.0,0.00013698,2]
[406977465,1772398245043,-500.0,0.00013698,2]
[406977466,1772398245053,-500.0,0.00013698,2]
[406977467,1772398245062,-500.0,0.00013698,2]
[406977468,1772398245072,-500.0,0.00013698,2]
[406977469,1772398245082,-500.0,0.00013698,2]
[406977470,1772398245092,-500.0,0.00013698,2]
[406977471,1772398245101,-500.0,0.00013698,2]
[406977472,1772398245111,-500.0,0.00013698,2]
[406977473,1772398245121,-500.0,0.00013698,2]
[406977474,1772398245131,-500.0,0.00013698,2]
[406977475,1772398245140,-500.0,0.00013698,2]
[406977476,1772398245150,-500.0,0.00013698,2]
[406977477,1772398245257,-500.0,0.00013698,2]
[406977478,1772398245267,-500.0,0.00013698,2]
[406977479,1772398245277,-500.0,0.00013698,2]
[406977480,1772398245286,-500.0,0.00013698,2]
[406977481,1772398245295,-500.0,0.00013698,2]
[406977482,1772398245305,-500.0,0.00013698,2]
[406977483,1772398245315,-500.0,0.00013698,2]
[406977484,1772398245325,-500.0,0.00013698,2]
[406977485,1772398245334,-500.0,0.00013698,2]
[406977486,1772398245343,-500.0,0.00013698,2]
[406977487,1772398245363,-500.0,0.00013698,2]
[406977488,1772398245373,-500.0,0.00013698,2]
[406977489,1772398245384,-500.0,0.00013698,2]
[406977490,1772398245394,-500.0,0.00013698,2]
[406977491,1772398245403,-500.0,0.00013698,2]
[406977492,1772398245413,-500.0,0.00013698,2]
[406977493,1772398245422,-500.0,0.00013698,2]
[406977494,1772398245432,-500.0,0.00013698,2]
[406977495,1772398245442,-500.0,0.00013698,2]
[406977496,1772398245452,-500.0,0.00013698,2]
[406977497,1772398245462,-539.61,0.00013698,2]
[406977498,1772398245472,-500.0,0.00013698,2]
[406977499,1772398245481,-500.0,0.00013698,2]
[406977500,1772398245491,-500.0,0.00013698,2]
[406977501,1772398245501,-500.0,0.00013698,2]
[406977502,1772398245511,-500.0,0.00013698,2]
[406977503,1772398245520,-500.0,0.00013698,2]
[406977504,1772398245530,-479.11436236,0.00013698,2]
[406977505,1772398245539,-500.0,0.00013698,2]
[406977506,1772398245549,-500.0,0.00013698,2]
[406977507,1772398245559,-500.0,0.00013698,2]
[406977508,1772398245569,-500.0,0.00013698,2]
[406977509,1772398245578,-500.0,0.00013698,2]
[406977510,1772398245588,-500.0,0.00013698,2]
[406977511,1772398245597,-500.0,0.00013698,2]
[406977512,1772398245607,-500.0,0.00013698,2]
[406977513,1772398245617,-500.0,0.00013698,2]
[406977514,1772398245627,-252.59652868,0.00013698,2]
[406977515,1772398245638,-500.0,0.00013698,2]
[406977516,1772398245648,-494.09872212,0.00013698,2]
[406977517,1772398245658,-500.0,0.00013698,2]
[406977518,1772398245669,-500.0,0.00013698,2]
[406977519,1772398245678,-500.0,0.00013698,2]
[406977520,1772398245688,-152.43247842,0.00013698,2]
[406977521,1772398245698,-500.0,0.00013698,2]
[406977522,1772398245707,-500.0,0.00013698,2]
[406977523,1772398245719,-500.0,0.00013698,2]
[406977524,1772398245729,-500.0,0.00013698,2]
[406977525,1772398245739,-500.0,0.00013698,2]
[406977526,1772398245748,-330.61629648,0.00013698,2]
[406977527,1772398245758,-151.0,0.00013698,2]
[406977528,1772398245767,-294.694375,0.00013698,2]
[406977529,1772398245777,-500.0,0.00013698,2]
[406977530,1772398245786,-500.0,0.00013698,2]
[406977531,1772398245796,-200.0,0.00013699,2]
[406977532,1772398245805,-151.0,0.00013699,2]
[406977533,1772398245815,-151.0,0.00013699,2]
[406977534,1772398245824,-241.16699,0.00013699,2]
[406977535,1772398245834,-241.16699,0.00013699,2]
[406977536,1772398245844,-241.16699,0.00013699,2]
[406977537,1772398245852,-241.16699,0.00013699,2]
[406977538,1772398245860,-241.16699,0.00013699,2]
[406977539,1772398245870,-241.16699,0.00013699,2]
[406977540,1772398245878,-241.16699,0.00013699,2]
[406977541,1772398245887,-241.16699,0.00013699,2]
[406977542,1772398245896,-241.16699,0.00013699,2]
[406977543,1772398245905,-241.16699,0.00013699,2]
[406977544,1772398245915,-241.16699,0.00013699,2]
[406977545,1772398245924,-241.16699,0.00013699,2]
[406977546,1772398245934,-151.0,0.00013699,2]
[406977547,1772398245943,-151.0,0.00013699,2]
[406977548,1772398245952,-151.0,0.00013699,2]
[406977549,1772398245962,-151.0,0.0001374,2]
[406977550,1772398245972,-682.808823,0.0001374,2]
[406977551,1772398245982,-682.808823,0.0001374,2]
[406977552,1772398245992,-682.808823,0.0001374,2]
[406977553,1772398246002,-682.808823,0.0001374,2]
[406977554,1772398246012,-782.859413,0.0001374,2]
[406977555,1772398246021,-782.859413,0.0001374,2]
[406977556,1772398246031,-782.859413,0.0001374,2]
[406977557,1772398246040,-782.859413,0.0001374,2]
[406977558,1772398246050,-151.0,0.0001374,2]
[406977559,1772398246059,-166.66,0.00013797,2]
[406977560,1772398246069,-350.0,0.00013799,2]
[406977561,1772398246079,-10203.9622654,0.00013803,2]
[406977562,1772398246090,-322.16,0.00013818,2]
[406977563,1772398246099,-666.0,0.00013862,2]
[406977564,1772398246108,-45927.64900619,0.00013863,2]
[406977565,1772398246118,-155.0,0.0001387,2]
[406977566,1772398246128,-1536.35,0.00013881,2]
[406977567,1772398246138,-1600.0,0.00013891,2]
[406977568,1772398246147,-25310.4832568,0.00013923,2]
[406977570,1772398246156,-700.0,0.00014043,2]
[406977571,1772398246166,-433.0,0.00014082,2]
[406977573,1772398246177,-587.0,0.00014094,2]
[406977574,1772398246188,-587.0,0.00014094,2]
[406977575,1772398246198,-516.0,0.0001411,2]
[406977576,1772398246208,-200.0,0.0001413,2]
[406977577,1772398246218,-2351.0,0.00014142,2]
[406977578,1772398246228,-1536.35,0.00014155,2]
[406977579,1772398246237,-166.66,0.00014212,2]
[406977580,1772398246248,-266.38,0.00014215,2]
[406977581,1772398246258,-666.0,0.00014219,2]
[406977582,1772398246269,-322.79728336,0.00014219,2]
[406977583,1772398246279,-54653.8989402,0.0001422,2]
[406977584,1772398246290,-194.72792766,0.00014237,2]
[406977585,1772398246300,-152.0,0.00014249,2]
[406977586,1772398246309,-152.0,0.00014249,2]
[406977587,1772398246323,-152.0,0.00014249,2]
[406977588,1772398246334,-159.06023003,0.00014249,2]
[406977589,1772398246344,-40000.0,0.0001427,2]
[406977590,1772398246354,-162.492537,0.00014374,2]
[406977591,1772398246364,-10907.0,0.00014374,2]
[406977592,1772398246374,-250.0,0.00014393,2]
[406977593,1772398246384,-5647.5321825,0.00014398,2]
[406977594,1772398246394,-151.0,0.00014424,2]
[406977595,1772398246404,-1536.35,0.00014429,2]
[406977596,1772398246413,-10203.9622654,0.00014448,2]
[406977597,1772398246424,-1512.0,0.00014522,2]
[406977598,1772398246433,-151.0,0.00014522,2]
[406977599,1772398246443,-1512.0,0.00014522,2]
[406977600,1772398246453,-151.0,0.00014522,2]
[406977601,1772398246463,-1512.0,0.00014522,2]
[406977602,1772398246473,-1512.0,0.00014522,2]
[406977603,1772398246482,-151.0,0.00014522,2]
[406977604,1772398246493,-1512.0,0.00014522,2]
[406977605,1772398246502,-151.0,0.00014522,2]
[406977606,1772398246513,-1512.0,0.00014522,2]
[406977607,1772398246522,-151.0,0.00014522,2]
[406977608,1772398246532,-1512.0,0.00014522,2]
[406977609,1772398246542,-151.0,0.00014522,2]
[406977610,1772398246552,-1512.0,0.00014522,2]
[406977611,1772398246562,-151.0,0.00014522,2]
[406977612,1772398246575,-1512.0,0.00014522,2]
[406977614,1772398246584,-1512.0,0.00014522,2]
[406977615,1772398246595,-1512.0,0.00014522,2]
[406977616,1772398246604,-151.0,0.00014522,2]
[406977617,1772398246614,-151.0,0.00014522,2]
[406977618,1772398246624,-1512.0,0.00014522,2]
[406977619,1772398246634,-151.0,0.00014522,2]
[406977621,1772398246645,-1512.0,0.00014522,2]
[406977622,1772398246656,-151.0,0.00014522,2]
[406977623,1772398246665,-1512.0,0.00014522,2]
[406977624,1772398246675,-1512.0,0.00014522,2]
[406977625,1772398246687,-151.0,0.00014522,2]
[406977626,1772398246697,-1512.0,0.00014522,2]
[406977627,1772398246707,-250.72418667,0.00014522,2]
[406977628,1772398246717,-1512.0,0.00014522,2]
[406977629,1772398246727,-1512.0,0.00014522,2]
[406977630,1772398246736,-1512.0,0.00014522,2]
[406977631,1772398246746,-1512.0,0.00014522,2]
[406977632,1772398246756,-1512.0,0.00014522,2]
[406977633,1772398246766,-1512.0,0.00014522,2]
[406977634,1772398246775,-1512.0,0.00014522,2]
[406977635,1772398246785,-946.22739329,0.00014522,2]
[406977636,1772398246794,-151.0,0.00014522,2]
[406977637,1772398246804,-151.0,0.00014522,2]
[406977638,1772398246813,-151.0,0.00014522,2]
[406977639,1772398246824,-151.0,0.00014522,2]
[406977641,1772398246834,-151.0,0.0001453,2]
[406977642,1772398246843,-151.0,0.0001453,2]
[406977643,1772398246852,-156.704488,0.0001453,2]
[406977644,1772398246862,-241.16699,0.0001453,2]
[406977645,1772398246871,-241.16699,0.0001453,2]
[406977646,1772398246986,-241.16699,0.0001453,2]
[406977647,1772398246996,-241.16699,0.0001453,2]
[406977648,1772398247006,-151.0,0.0001453,2]
[406977649,1772398247016,-155.983782,0.0001453,2]
[406977650,1772398247027,-45927.64900619,0.00014536,2]
[406977651,1772398247038,-12194.9332232,0.0001458,2]
[406977652,1772398247049,-379.81357415,0.0001458,2]
[406977653,1772398247061,-166.66,0.00014626,2]
[406977654,1772398247072,-645.74125194,0.00014677,2]
[406977655,1772398247082,-200.0,0.00014678,2]
[406977656,1772398247092,-1536.35,0.00014703,2]
[406977657,1772398247102,-666.0,0.00014713,2]
[406977658,1772398247111,-150821.50306457,0.00014714,7]
[406977659,1772398247120,-4065.91226816,0.00014714,7]
[406977660,1772398247130,-151.0,0.00014714,2]
[406977661,1772398247140,-682.808823,0.00014714,2]
[406977662,1772398247149,-682.808823,0.00014714,2]
[406977663,1772398247159,-682.808823,0.00014714,2]
[406977664,1772398247168,-682.808823,0.00014714,2]
[406977665,1772398247178,-782.859413,0.00014714,2]
[406977666,1772398247188,-782.859413,0.00014714,2]
[406977667,1772398247197,-782.859413,0.00014714,2]
[406977668,1772398247207,-782.859413,0.00014714,2]
[406977669,1772398247216,-151.0,0.00014714,2]
[406977670,1772398247226,-151.0,0.00014714,2]
[406977671,1772398247235,-163.85650104,0.00014726,2]
[406977672,1772398247244,-666.0,0.00014744,2]
[406977673,1772398247253,-500.0,0.00014745,2]
[406977674,1772398247263,-500.0,0.00014745,2]
[406977675,1772398247272,-500.0,0.00014745,2]
[406977676,1772398247281,-500.0,0.00014745,2]
[406977677,1772398247290,-162.5481671,0.00014745,2]
[406977678,1772398247299,-500.0,0.00014745,2]
[406977679,1772398247308,-500.0,0.00014745,2]
[406977680,1772398247319,-500.0,0.00014745,2]
[406977681,1772398247328,-500.0,0.00014745,2]
[406977682,1772398247338,-405.61,0.00014745,2]
[406977683,1772398247347,-500.0,0.00014745,2]
[406977684,1772398247356,-500.0,0.00014745,2]
[406977685,1772398247365,-500.0,0.00014745,2]
[406977686,1772398247374,-500.0,0.00014745,2]
[406977687,1772398247383,-500.0,0.00014745,2]
[406977688,1772398247393,-500.0,0.00014745,2]
[406977689,1772398247402,-500.0,0.00014745,2]
[406977690,1772398247411,-500.0,0.00014745,2]
[406977691,1772398247420,-500.0,0.00014745,2]
[406977692,1772398247429,-500.0,0.00014745,2]
[406977693,1772398247439,-500.0,0.00014745,2]
[406977694,1772398247448,-500.0,0.00014745,2]
[406977695,1772398247457,-500.0,0.00014745,2]
[406977696,1772398247468,-500.0,0.00014745,2]
[406977697,1772398247477,-500.0,0.00014745,2]
[406977698,1772398247487,-500.0,0.00014745,2]
[406977699,1772398247496,-500.0,0.00014745,2]
[406977700,1772398247506,-500.0,0.00014745,2]
[406977701,1772398247515,-500.0,0.00014745,2]